[Event "Paracin Open 2022"]
[Site "Paracin"]
[Date "2022.07.09"]
[Round "2.12"]
[White "Ojas Kulkarni"]
[Black "Nitish Belurkar"]
[Result "1/2-1/2"]
[ECO "E70"]
[WhiteElo "2244"]
[BlackElo "2460"]
[Annotator "RC"]
[PlyCount "32"]
[EventDate "2022.07.08"]
[EventCountry "SRB"]
[SourceTitle "playchess.com"]
[Source "ChessBase"]
[SourceQuality "1"]
[TimeControl "5400+30"]

1. d4 {[%emt 0:00:04]} Nf6 {[%emt 0:00:12]} 2. c4 {[%emt 0:00:05]} g6 {[%emt 0:00:52]} 3. Nc3 {[%emt 0:00:06]} Bg7 {[%emt 0:00:03]} 4. e4 {[%emt 0:00:06]} d6 {[%emt 0:00:03]} 5. Bd3 {[%emt 0:00:05]} O-O {[%emt 0:00:24]} 6. Nge2 {[%emt 0:00:05]} e5 {[%emt 0:02:23]} 7. d5 {[%emt 0:00:07]} a5 {[%emt 0:00:16]} 8. O-O {[%emt 0:00:11]} Na6 {[%emt 0:01:00]} 9. f3 {[%emt 0:00:26]} Nc5 {[%emt 0:03:35]} 10. Bc2 {[%emt 0:00:08]} Bd7 {[%emt 0:01:12]} 11. Be3 {[%emt 0:00:36]} Qe8 {[%emt 0:03:54]} 12. b3 {[%emt 0:04:28]} Qe7 {[%emt 0:06:32]} 13. a3 {[%emt 0:02:09]} Na6 {[%emt 0:10:48]} 14. Rb1 {[%emt 0:00:58]} c5 {[%emt 0:09:22]} 15. g4 {[%emt 0:09:54]} Ne8 {[%emt 0:01:26]} 16. Ng3 {[%emt 0:00:35]} Nec7 {[%emt 0:01:58]} 1/2-1/2

[Event "Paracin Open 2022"]
[Site "Paracin"]
[Date "2022.07.09"]
[Round "2.13"]
[White "Agmanov, Zhandos"]
[Black "Baasansuren, Erdene"]
[Result "1-0"]
[ECO "B90"]
[WhiteElo "2459"]
[BlackElo "2243"]
[Annotator "RC"]
[PlyCount "151"]
[EventDate "2022.07.08"]
[EventCountry "SRB"]
[SourceTitle "playchess.com"]
[Source "ChessBase"]
[SourceQuality "1"]
[TimeControl "5400+30"]

1. e4 {[%emt 0:00:42]} c5 {[%emt 0:00:44]} 2. Nf3 {[%emt 0:00:08]} d6 {[%emt 0:00:09]} 3. d4 {[%emt 0:02:54]} cxd4 {[%emt 0:00:30]} 4. Nxd4 {[%emt 0:00:41]} Nf6 {[%emt 0:01:06]} 5. Nc3 {[%emt 0:00:08]} a6 {[%emt 0:00:39]} 6. Nb3 {[%emt 0:02:38]} e6 {[%emt 0:08:53]} 7. g4 {[%emt 0:01:45]} b5 {[%emt 0:02:33]} 8. a3 {[%emt 0:02:02]} Bb7 {[%emt 0:01:35]} 9. Bg2 {[%emt 0:00:07]} Be7 {[%emt 0:04:11]} 10. g5 {[%emt 0:00:44]} Nfd7 {[%emt 0:00:51]} 11. h4 {[%emt 0:00:38]} Ne5 {[%emt 0:11:15]} 12. f4 {[%emt 0:02:51]} Nc4 {[%emt 0:09:12]} 13. Nd4 {[%emt 0:04:29]} Nc6 {[%emt 0:15:00]} 14. Nxc6 {[%emt 0:01:56]} Bxc6 {[%emt 0:00:07]} 15. b3 {[%emt 0:00:30]} Nb6 {[%emt 0:02:15]} 16. Bb2 {[%emt 0:02:20]} h6 {[%emt 0:12:17]} 17. Qd4 {[%emt 0:10:47]} hxg5 {[%emt 0:06:13]} 18. hxg5 {[%emt 0:00:15]} Rxh1+ {[%emt 0:00:39]} 19. Bxh1 {[%emt 0:00:03]} f6 {[%emt 0:04:59]} 20. O-O-O {[%emt 0:03:08]} Qc7 {[%emt 0:01:17]} 21. gxf6 {[%emt 0:10:41]} gxf6 {[%emt 0:00:09]} 22. Rg1 {[%emt 0:00:40]} O-O-O {[%emt 0:00:33]} 23. Rg7 {[%emt 0:00:11]} Rd7 {[%emt 0:02:19]} 24. Bg2 {[%emt 0:07:24]} Bd8 {[%emt 0:03:54]} 25. Rg8 {[%emt 0:00:48]} Rg7 {[%emt 0:00:45]} 26. Rxg7 {[%emt 0:02:03]} Qxg7 {[%emt 0:00:02]} 27. Qxd6 {[%emt 0:00:17]} Bd7 {[%emt 0:01:01]} 28. Qd2 {[%emt 0:11:35]} Bc7 {[%emt 0:00:14]} 29. Kb1 {[%emt 0:00:09]} Qg3 {[%emt 0:00:34]} 30. Bc1 {[%emt 0:00:19]} Bc6 {[%emt 0:04:19]} 31. Bf1 {[%emt 0:02:00]} Nd7 {[%emt 0:06:17]} 32. Qe3 {[%emt 0:04:14]} Bxf4 {[%emt 0:00:10]} 33. Qxf4 {[%emt 0:01:15]} Qxc3 {[%emt 0:00:06]} 34. Qh4 {[%emt 0:09:40]} Kb7 {[%emt 0:01:31]} 35. Bd3 {[%emt 0:06:44]} Qc5 {[%emt 0:00:05]} 36. Bb2 {[%emt 0:00:49]} Qg1+ {[%emt 0:01:30]} 37. Ka2 {[%emt 0:00:06]} e5 {[%emt 0:00:15]} 38. Bc3 {[%emt 0:00:57]} Qg5 {[%emt 0:00:46]} 39. Qh7 {[%emt 0:00:13]} Qe3 {[%emt 0:00:23]} 40. Bb4 {[%emt 0:00:20]} Qd4 {[%emt 0:00:23]} 41. Qf7 {[%emt 0:01:17]} Kc7 {[%emt 0:00:23]} 42. Ba5+ {[%emt 0:00:58]} Kb7 {[%emt 0:00:04]} 43. Qe7 {[%emt 0:00:54]} Qc5 {[%emt 0:00:22]} 44. Qe6 {[%emt 0:02:36]} Qf8 {[%emt 0:01:17]} 45. Bb4 {[%emt 0:00:15]} Qc8 {[%emt 0:00:34]} 46. Bd6 {[%emt 0:00:50]} Qd8 {[%emt 0:00:28]} 47. Qf7 {[%emt 0:00:36]} Qb6 {[%emt 0:00:35]} 48. Be7 {[%emt 0:00:42]} Qf2 {[%emt 0:00:27]} 49. Bd8 {[%emt 0:00:37]} Qd4 {[%emt 0:00:29]} 50. Ba5 {[%emt 0:01:06]} Qc5 {[%emt 0:00:29]} 51. Bb4 {[%emt 0:00:11]} Qd4 {[%emt 0:00:14]} 52. Qh7 {[%emt 0:01:15]} Kb6 {[%emt 0:00:47]} 53. Qe7 {[%emt 0:01:29]} Kc7 {[%emt 0:00:32]} 54. Ba5+ {[%emt 0:00:23]} Kb7 {[%emt 0:00:01]} 55. Qh7 {[%emt 0:01:21]} Qd6 {[%emt 0:00:39]} 56. Bd8 {[%emt 0:00:32]} Qe6 {[%emt 0:00:56]} 57. Be7 {[%emt 0:00:09]} Kc8 {[%emt 0:00:24]} 58. Qh8+ {[%emt 0:00:34]} Kb7 {[%emt 0:00:35]} 59. Qd8 {[%emt 0:00:13]} a5 {[%emt 0:00:30]} 60. Kb2 {[%emt 0:00:57]} a4 {[%emt 0:00:25]} 61. bxa4 {[%emt 0:02:10]} bxa4 {[%emt 0:00:01]} 62. Kc3 {[%emt 0:00:46]} Nb6 {[%emt 0:01:00]} 63. Bxf6 {[%emt 0:00:51]} Nc8 {[%emt 0:00:22]} 64. Bg5 {[%emt 0:00:56]} Qd6 {[%emt 0:00:38]} 65. Ba6+ {[%emt 0:01:17]} Kxa6 {[%emt 0:00:26]} 66. Qxc8+ {[%emt 0:00:01]} Kb5 {[%emt 0:00:32]} 67. Kb2 {[%emt 0:00:42]} Qd4+ {[%emt 0:00:23]} 68. Kb1 {[%emt 0:00:06]} Qxe4 {[%emt 0:00:34]} 69. Qb8+ {[%emt 0:01:04]} Kc4 {[%emt 0:00:30]} 70. Bd2 {[%emt 0:00:09]} Qd4 {[%emt 0:00:34]} 71. Qc7 {[%emt 0:00:55]} Kd5 {[%emt 0:00:23]} 72. Bb4 {[%emt 0:00:38]} Qd1+ {[%emt 0:00:39]} 73. Kb2 {[%emt 0:00:04]} Qd4+ {[%emt 0:00:16]} 74. Bc3 {[%emt 0:00:01]} Qe3 {[%emt 0:00:27]} 75. Qf7+ {[%emt 0:00:30]} Kc5 {[%emt 0:00:36]} 76. Qa7+ {[%emt 0:00:04]} 1-0

[Event "Paracin Open 2022"]
[Site "Paracin"]
[Date "2022.07.09"]
[Round "2.14"]
[White "Ristic, Luka"]
[Black "Sturt, Raven"]
[Result "0-1"]
[ECO "A48"]
[WhiteElo "2243"]
[BlackElo "2457"]
[Annotator "RC"]
[PlyCount "118"]
[EventDate "2022.07.08"]
[EventCountry "SRB"]
[SourceTitle "playchess.com"]
[Source "ChessBase"]
[SourceQuality "1"]
[TimeControl "5400+30"]

1. d4 {[%emt 0:00:03]} Nf6 {[%emt 0:00:04]} 2. Bf4 {[%emt 0:00:17]} g6 {[%emt 0:00:04]} 3. e3 {[%emt 0:00:06]} Bg7 {[%emt 0:00:06]} 4. Nf3 {[%emt 0:00:06]} O-O {[%emt 0:00:08]} 5. Be2 {[%emt 0:00:14]} d6 {[%emt 0:00:08]} 6. h3 {[%emt 0:00:13]} b6 {[%emt 0:00:10]} 7. O-O {[%emt 0:00:48]} Bb7 {[%emt 0:00:03]} 8. c3 {[%emt 0:05:35]} Nbd7 {[%emt 0:00:06]} 9. Bh2 {[%emt 0:00:15]} Re8 {[%emt 0:00:20]} 10. Nbd2 {[%emt 0:01:08]} e5 {[%emt 0:00:15]} 11. a4 {[%emt 0:01:25]} a5 {[%emt 0:02:21]} 12. Qb3 {[%emt 0:03:43]} Qe7 {[%emt 0:00:34]} 13. Qa3 {[%emt 0:10:10]} exd4 {[%emt 0:03:22]} 14. cxd4 {[%emt 0:00:36]} Nd5 {[%emt 0:00:03]} 15. Rac1 {[%emt 0:07:10]} Rac8 {[%emt 0:01:19]} 16. Bb5 {[%emt 0:04:19]} Nb4 {[%emt 0:00:37]} 17. Rfe1 {[%emt 0:02:12]} f5 {[%emt 0:01:30]} 18. e4 {[%emt 0:05:51]} fxe4 {[%emt 0:03:53]} 19. Nxe4 {[%emt 0:02:04]} Bxe4 {[%emt 0:00:34]} 20. Rxe4 {[%emt 0:00:27]} Qxe4 {[%emt 0:00:20]} 21. Qb3+ {[%emt 0:04:32]} Kh8 {[%emt 0:09:52]} 22. Bxd7 {[%emt 0:03:34]} Bh6 {[%emt 0:23:01]} 23. Rd1 {[%emt 0:13:54]} Qc2 {[%emt 0:03:03]} 24. Qxc2 {[%emt 0:01:21]} Nxc2 {[%emt 0:00:03]} 25. g4 {[%emt 0:04:07]} Rf8 {[%emt 0:03:01]} 26. Bxc8 {[%emt 0:00:33]} Rxc8 {[%emt 0:02:02]} 27. Kg2 {[%emt 0:03:10]} Nb4 {[%emt 0:01:57]} 28. d5 {[%emt 0:04:31]} Na6 {[%emt 0:02:37]} 29. b3 {[%emt 0:07:20]} Nc5 {[%emt 0:00:06]} 30. g5 {[%emt 0:01:07]} Bg7 {[%emt 0:00:05]} 31. Nd2 {[%emt 0:02:01]} Rf8 {[%emt 0:04:58]} 32. h4 {[%emt 0:02:30]} Bc3 {[%emt 0:00:25]} 33. Nc4 {[%emt 0:01:17]} Bb4 {[%emt 0:03:18]} 34. Rb1 {[%emt 0:00:52]} Kg8 {[%emt 0:00:20]} 35. Bg3 {[%emt 0:01:05]} Kg7 {[%emt 0:03:09]} 36. Rb2 {[%emt 0:01:03]} h5 {[%emt 0:00:09]} 37. gxh6+ {[%emt 0:01:24]} Kxh6 {[%emt 0:00:02]} 38. Re2 {[%emt 0:00:37]} Kg7 {[%emt 0:01:43]} 39. Re3 {[%emt 0:00:35]} Rf5 {[%emt 0:00:13]} 40. Re7+ {[%emt 0:01:31]} Rf7 {[%emt 0:00:01]} 41. Re3 {[%emt 0:00:03]} Kf8 {[%emt 0:00:32]} 42. h5 {[%emt 0:03:12]} gxh5 {[%emt 0:00:11]} 43. Bh4 {[%emt 0:01:29]} Na6 {[%emt 0:04:11]} 44. Re6 {[%emt 0:01:18]} Bc5 {[%emt 0:00:31]} 45. Rh6 {[%emt 0:00:19]} Rf5 {[%emt 0:01:14]} 46. Rh7 {[%emt 0:02:19]} Kg8 {[%emt 0:00:12]} 47. Rd7 {[%emt 0:00:19]} Bd4 {[%emt 0:06:42]} 48. Rd8+ {[%emt 0:00:43]} Kg7 {[%emt 0:00:38]} 49. Ra8 {[%emt 0:00:30]} Nb4 {[%emt 0:00:07]} 50. Ra7 {[%emt 0:00:05]} Rf7 {[%emt 0:00:07]} 51. Na3 {[%emt 0:01:23]} Nxd5 {[%emt 0:00:17]} 52. Nb5 {[%emt 0:00:10]} Bc5 {[%emt 0:00:07]} 53. Bg3 {[%emt 0:00:49]} Kf6 {[%emt 0:01:11]} 54. Rb7 {[%emt 0:00:32]} Ke6 {[%emt 0:00:12]} 55. Ra7 {[%emt 0:00:28]} Rd7 {[%emt 0:00:46]} 56. Ra8 {[%emt 0:00:28]} c6 {[%emt 0:00:08]} 57. Na7 {[%emt 0:00:18]} Rc7 {[%emt 0:00:02]} 58. Re8+ {[%emt 0:00:23]} Kd7 {[%emt 0:00:13]} 59. Ra8 {[%emt 0:00:09]} b5 {[%emt 0:00:35]} 0-1

[Event "Paracin Open 2022"]
[Site "Paracin"]
[Date "2022.07.09"]
[Round "2.15"]
[White "Neelash Saha"]
[Black "Cilek, Bora"]
[Result "1-0"]
[ECO "E08"]
[WhiteElo "2446"]
[BlackElo "2238"]
[Annotator "RC"]
[PlyCount "73"]
[EventDate "2022.07.08"]
[EventCountry "SRB"]
[SourceTitle "playchess.com"]
[Source "ChessBase"]
[SourceQuality "1"]
[TimeControl "5400+30"]

1. d4 {[%emt 0:09:54]} Nf6 {[%emt 0:00:05]} 2. c4 {[%emt 0:00:04]} e6 {[%emt 0:00:05]} 3. g3 {[%emt 0:00:04]} d5 {[%emt 0:00:14]} 4. Nf3 {[%emt 0:00:05]} Be7 {[%emt 0:00:09]} 5. Bg2 {[%emt 0:00:05]} O-O {[%emt 0:00:10]} 6. O-O {[%emt 0:00:03]} c6 {[%emt 0:00:06]} 7. Qc2 {[%emt 0:00:06]} b6 {[%emt 0:00:06]} 8. Rd1 {[%emt 0:00:12]} Nbd7 {[%emt 0:00:55]} 9. b3 {[%emt 0:00:26]} Ba6 {[%emt 0:00:16]} 10. Bb2 {[%emt 0:02:36]} Rc8 {[%emt 0:01:00]} 11. Nc3 {[%emt 0:02:48]} b5 {[%emt 0:01:30]} 12. c5 {[%emt 0:02:39]} b4 {[%emt 0:07:18]} 13. Nb1 {[%emt 0:00:10]} Bb5 {[%emt 0:00:16]} 14. a3 {[%emt 0:02:05]} a5 {[%emt 0:00:05]} 15. Ne1 {[%emt 0:00:19]} Qc7 {[%emt 0:18:06]} 16. Nd3 {[%emt 0:06:20]} Bxd3 {[%emt 0:01:51]} 17. Qxd3 {[%emt 0:00:15]} e5 {[%emt 0:00:06]} 18. e3 {[%emt 0:00:03]} e4 {[%emt 0:07:16]} 19. Qd2 {[%emt 0:00:12]} Rb8 {[%emt 0:07:49]} 20. axb4 {[%emt 0:00:25]} axb4 {[%emt 0:00:24]} 21. Ra4 {[%emt 0:00:39]} Rb7 {[%emt 0:04:19]} 22. Qe1 {[%emt 0:04:07]} Rfb8 {[%emt 0:02:48]} 23. Nd2 {[%emt 0:00:08]} Ra7 {[%emt 0:17:37]} 24. Rda1 {[%emt 0:00:29]} Rbb7 {[%emt 0:01:04]} 25. Bf1 {[%emt 0:06:51]} Qb8 {[%emt 0:03:02]} 26. Ba6 {[%emt 0:01:30]} Rc7 {[%emt 0:00:09]} 27. Nf1 {[%emt 0:00:52]} Bxc5 {[%emt 0:01:38]} 28. dxc5 {[%emt 0:00:21]} Nxc5 {[%emt 0:00:03]} 29. Rxb4 {[%emt 0:00:37]} Qa8 {[%emt 0:01:42]} 30. Be2 {[%emt 0:00:07]} Nfd7 {[%emt 0:00:21]} 31. Rxa7 {[%emt 0:07:40]} Rxa7 {[%emt 0:00:09]} 32. Qc3 {[%emt 0:03:34]} f6 {[%emt 0:00:40]} 33. Rd4 {[%emt 0:00:52]} Ra2 {[%emt 0:01:22]} 34. Rd1 {[%emt 0:00:48]} Qb7 {[%emt 0:00:13]} 35. Nd2 {[%emt 0:02:14]} Ne5 {[%emt 0:00:45]} 36. Qxc5 {[%emt 0:02:04]} Rxb2 {[%emt 0:00:17]} 37. Qc3 {[%emt 0:00:08]} 1-0

[Event "Paracin Open 2022"]
[Site "Paracin"]
[Date "2022.07.09"]
[Round "2.16"]
[White "Konyves, Almos"]
[Black "Nogerbek, Kazybek"]
[Result "0-1"]
[ECO "A40"]
[WhiteElo "2229"]
[BlackElo "2437"]
[Annotator "RC"]
[PlyCount "78"]
[EventDate "2022.07.08"]
[EventCountry "SRB"]
[SourceTitle "playchess.com"]
[Source "ChessBase"]
[SourceQuality "1"]
[TimeControl "5400+30"]

1. d4 {[%emt 0:00:07]} Nf6 {[%emt 0:00:14]} 2. c4 {[%emt 0:00:16]} b6 {[%emt 0:00:13]} 3. Nc3 {[%emt 0:00:49]} Bb7 {[%emt 0:00:12]} 4. Bg5 {[%emt 0:06:57]} e6 {[%emt 0:02:01]} 5. a3 {[%emt 0:05:04]} Be7 {[%emt 0:01:35]} 6. e3 {[%emt 0:02:38]} h6 {[%emt 0:00:45]} 7. Bh4 {[%emt 0:00:24]} c5 {[%emt 0:01:09]} 8. Nf3 {[%emt 0:03:57]} cxd4 {[%emt 0:02:37]} 9. exd4 {[%emt 0:01:36]} O-O {[%emt 0:00:39]} 10. Be2 {[%emt 0:05:56]} d5 {[%emt 0:03:22]} 11. Bxf6 {[%emt 0:04:55]} Bxf6 {[%emt 0:02:05]} 12. cxd5 {[%emt 0:00:06]} Bxd5 {[%emt 0:07:10]} 13. Nxd5 {[%emt 0:00:22]} Qxd5 {[%emt 0:00:18]} 14. Ne5 {[%emt 0:12:39]} Bxe5 {[%emt 0:00:30]} 15. Bf3 {[%emt 0:00:17]} Qxd4 {[%emt 0:00:08]} 16. Qxd4 {[%emt 0:00:04]} Bxd4 {[%emt 0:00:09]} 17. Bxa8 {[%emt 0:00:05]} Bxb2 {[%emt 0:00:11]} 18. Ra2 {[%emt 0:00:07]} Bd4 {[%emt 0:00:25]} 19. Ke2 {[%emt 0:01:07]} Na6 {[%emt 0:02:08]} 20. Bc6 {[%emt 0:02:34]} Nc5 {[%emt 0:01:15]} 21. Rd1 {[%emt 0:07:28]} e5 {[%emt 0:01:21]} 22. f4 {[%emt 0:01:26]} Rc8 {[%emt 0:02:33]} 23. Bd5 {[%emt 0:08:02]} Na4 {[%emt 0:01:27]} 24. fxe5 {[%emt 0:04:38]} Nc3+ {[%emt 0:00:58]} 25. Kd3 {[%emt 0:00:32]} Nxd1 {[%emt 0:02:22]} 26. Kxd4 {[%emt 0:00:20]} Nc3 {[%emt 0:00:09]} 27. Rf2 {[%emt 0:04:50]} Rd8 {[%emt 0:00:31]} 28. Kxc3 {[%emt 0:00:21]} Rxd5 {[%emt 0:00:07]} 29. Re2 {[%emt 0:00:05]} Kf8 {[%emt 0:00:27]} 30. Re4 {[%emt 0:10:11]} Ke7 {[%emt 0:00:19]} 31. Kc4 {[%emt 0:03:05]} Ra5 {[%emt 0:00:31]} 32. Kb4 {[%emt 0:01:34]} Ke6 {[%emt 0:00:27]} 33. Rc4 {[%emt 0:02:27]} Rxe5 {[%emt 0:00:57]} 34. Rc7 {[%emt 0:00:05]} Re2 {[%emt 0:03:14]} 35. Rxa7 {[%emt 0:00:04]} Rxg2 {[%emt 0:00:06]} 36. Rb7 {[%emt 0:00:05]} f5 {[%emt 0:00:46]} 37. Rxb6+ {[%emt 0:00:06]} Kd5 {[%emt 0:00:06]} 38. Kc3 {[%emt 0:00:27]} f4 {[%emt 0:01:56]} 39. Kd3 {[%emt 0:02:06]} Rxh2 {[%emt 0:01:30]} 0-1

[Event "Paracin Open 2022"]
[Site "Paracin"]
[Date "2022.07.09"]
[Round "2.17"]
[White "Saurabh Anand"]
[Black "Srihari L R"]
[Result "0-1"]
[ECO "E11"]
[WhiteElo "2215"]
[BlackElo "2431"]
[Annotator "RC"]
[PlyCount "102"]
[EventDate "2022.07.08"]
[EventCountry "SRB"]
[SourceTitle "playchess.com"]
[Source "ChessBase"]
[SourceQuality "1"]
[TimeControl "5400+30"]

1. d4 {[%emt 0:02:26]} Nf6 {[%emt 0:02:22]} 2. c4 {[%emt 0:00:34]} e6 {[%emt 0:00:10]} 3. Nf3 {[%emt 0:00:21]} Bb4+ {[%emt 0:01:27]} 4. Bd2 {[%emt 0:00:15]} Qe7 {[%emt 0:00:14]} 5. e3 {[%emt 0:01:28]} Bxd2+ {[%emt 0:05:39]} 6. Nbxd2 {[%emt 0:02:52]} d6 {[%emt 0:02:04]} 7. Bd3 {[%emt 0:02:21]} e5 {[%emt 0:02:38]} 8. Qc2 {[%emt 0:00:40]} O-O {[%emt 0:02:32]} 9. O-O {[%emt 0:04:07]} Nc6 {[%emt 0:08:41]} 10. a3 {[%emt 0:08:07]} Re8 {[%emt 0:02:45]} 11. d5 {[%emt 0:01:04]} Nb8 {[%emt 0:12:07]} 12. e4 {[%emt 0:01:57]} c5 {[%emt 0:09:11]} 13. Ne1 {[%emt 0:05:42]} Nh5 {[%emt 0:02:45]} 14. g3 {[%emt 0:01:21]} Bh3 {[%emt 0:01:04]} 15. Ng2 {[%emt 0:00:04]} g6 {[%emt 0:00:53]} 16. Rae1 {[%emt 0:03:29]} Nd7 {[%emt 0:01:47]} 17. Nf3 {[%emt 0:02:14]} Qf6 {[%emt 0:13:00]} 18. Nfh4 {[%emt 0:03:37]} Re7 {[%emt 0:02:59]} 19. Kh1 {[%emt 0:01:27]} Rae8 {[%emt 0:02:39]} 20. Qd1 {[%emt 0:05:05]} Qg7 {[%emt 0:01:52]} 21. Rg1 {[%emt 0:03:24]} Bxg2+ {[%emt 0:04:25]} 22. Rxg2 {[%emt 0:04:33]} Qh6 {[%emt 0:00:18]} 23. Qc1 {[%emt 0:03:27]} Qxc1 {[%emt 0:04:24]} 24. Rxc1 {[%emt 0:00:02]} Kg7 {[%emt 0:03:19]} 25. Be2 {[%emt 0:00:26]} Kh6 {[%emt 0:00:20]} 26. Rgg1 {[%emt 0:02:53]} Rf8 {[%emt 0:00:30]} 27. g4 {[%emt 0:03:48]} Nf4 {[%emt 0:00:23]} 28. Bf1 {[%emt 0:00:10]} Kg7 {[%emt 0:01:04]} 29. Rg3 {[%emt 0:01:12]} Kh8 {[%emt 0:01:14]} 30. Rb3 {[%emt 0:00:51]} Nf6 {[%emt 0:00:46]} 31. f3 {[%emt 0:00:35]} Ne8 {[%emt 0:00:10]} 32. Re3 {[%emt 0:05:30]} Nf6 {[%emt 0:03:11]} 33. h3 {[%emt 0:05:01]} h5 {[%emt 0:00:36]} 34. Kh2 {[%emt 0:00:24]} Kg7 {[%emt 0:00:21]} 35. Kg3 {[%emt 0:02:27]} Rh8 {[%emt 0:00:31]} 36. Rec3 {[%emt 0:03:01]} hxg4 {[%emt 0:02:09]} 37. hxg4 {[%emt 0:00:05]} Kh6 {[%emt 0:00:11]} 38. Ng2 {[%emt 0:01:23]} Kg5 {[%emt 0:00:20]} 39. Nxf4 {[%emt 0:02:36]} exf4+ {[%emt 0:00:27]} 40. Kf2 {[%emt 0:00:04]} Rc7 {[%emt 0:01:29]} 41. b4 {[%emt 0:03:39]} Nd7 {[%emt 0:00:14]} 42. b5 {[%emt 0:01:44]} b6 {[%emt 0:00:47]} 43. Kg2 {[%emt 0:02:07]} Ne5 {[%emt 0:01:21]} 44. a4 {[%emt 0:01:17]} f5 {[%emt 0:00:55]} 45. exf5 {[%emt 0:02:32]} gxf5 {[%emt 0:00:07]} 46. gxf5 {[%emt 0:00:19]} Kxf5 {[%emt 0:00:05]} 47. Kf2 {[%emt 0:00:04]} Rh2+ {[%emt 0:00:41]} 48. Bg2 {[%emt 0:01:46]} Rg7 {[%emt 0:00:15]} 49. Rg1 {[%emt 0:00:02]} Rg3 {[%emt 0:00:29]} 50. Kf1 {[%emt 0:00:16]} Kg5 {[%emt 0:00:14]} 51. Bh1 {[%emt 0:01:14]} Kh4 {[%emt 0:00:11]} 0-1

[Event "Paracin Open 2022"]
[Site "Paracin"]
[Date "2022.07.09"]
[Round "2.18"]
[White "Samant Aditya S"]
[Black "Mitev, Valentin"]
[Result "1-0"]
[ECO "B80"]
[WhiteElo "2431"]
[BlackElo "2228"]
[Annotator "RC"]
[PlyCount "106"]
[EventDate "2022.07.08"]
[EventCountry "SRB"]
[SourceTitle "playchess.com"]
[Source "ChessBase"]
[SourceQuality "1"]
[TimeControl "5400+30"]

1. e4 {[%emt 0:00:04]} c5 {[%emt 0:00:25]} 2. Nf3 {[%emt 0:00:08]} d6 {[%emt 0:00:21]} 3. d4 {[%emt 0:00:07]} cxd4 {[%emt 0:00:21]} 4. Nxd4 {[%emt 0:00:08]} Nf6 {[%emt 0:00:23]} 5. Nc3 {[%emt 0:00:13]} a6 {[%emt 0:00:24]} 6. Be3 {[%emt 0:00:14]} e6 {[%emt 0:00:24]} 7. f3 {[%emt 0:00:47]} b5 {[%emt 0:00:24]} 8. a3 {[%emt 0:00:33]} h5 {[%emt 0:00:34]} 9. Bd3 {[%emt 0:04:12]} Nbd7 {[%emt 0:01:42]} 10. a4 {[%emt 0:14:53]} bxa4 {[%emt 0:09:34]} 11. Rxa4 {[%emt 0:06:39]} Bb7 {[%emt 0:17:05]} 12. Nb3 {[%emt 0:05:25]} Ne5 {[%emt 0:07:51]} 13. Be2 {[%emt 0:13:38]} Nc6 {[%emt 0:13:50]} 14. O-O {[%emt 0:05:44]} Nd7 {[%emt 0:05:11]} 15. f4 {[%emt 0:02:47]} Nc5 {[%emt 0:01:30]} 16. Ra3 {[%emt 0:21:45]} g6 {[%emt 0:07:11]} 17. e5 {[%emt 0:03:16]} Nb4 {[%emt 0:06:38]} 18. exd6 {[%emt 0:12:30]} Nxb3 {[%emt 0:00:31]} 19. Bf3 {[%emt 0:05:19]} Bxf3 {[%emt 0:10:20]} 20. Qxf3 {[%emt 0:00:02]} Bxd6 {[%emt 0:00:11]} 21. Rxb3 {[%emt 0:00:07]} O-O {[%emt 0:09:43]} 22. Rd1 {[%emt 0:00:04]} Nd5 {[%emt 0:00:17]} 23. Nxd5 {[%emt 0:02:39]} exd5 {[%emt 0:00:04]} 24. Qxd5 {[%emt 0:00:37]} Be7 {[%emt 0:01:46]} 25. Rb6 {[%emt 0:00:23]} Qxd5 {[%emt 0:00:40]} 26. Rxd5 {[%emt 0:00:02]} Rfb8 {[%emt 0:03:04]} 27. c4 {[%emt 0:01:01]} Rc8 {[%emt 0:01:49]} 28. c5 {[%emt 0:00:32]} Ra7 {[%emt 0:01:24]} 29. c6 {[%emt 0:00:33]} Rac7 {[%emt 0:00:47]} 30. Rd7 {[%emt 0:00:30]} Bf6 {[%emt 0:00:18]} 31. Rxc7 {[%emt 0:00:17]} Rxc7 {[%emt 0:00:03]} 32. b4 {[%emt 0:00:40]} Be7 {[%emt 0:00:20]} 33. Kf1 {[%emt 0:00:35]} Bd6 {[%emt 0:00:52]} 34. Bd2 {[%emt 0:00:20]} Ra7 {[%emt 0:00:14]} 35. Ke2 {[%emt 0:00:38]} Kf8 {[%emt 0:00:26]} 36. Kd3 {[%emt 0:00:29]} Ke8 {[%emt 0:00:45]} 37. Be3 {[%emt 0:00:34]} Kd8 {[%emt 0:00:32]} 38. Kc4 {[%emt 0:00:22]} Bc7 {[%emt 0:01:02]} 39. Rb7 {[%emt 0:00:38]} Rxb7 {[%emt 0:00:31]} 40. cxb7 {[%emt 0:00:01]} Bb8 {[%emt 0:00:03]} 41. Bb6+ {[%emt 0:00:51]} Kd7 {[%emt 0:00:16]} 42. Kd5 {[%emt 0:00:01]} Bxf4 {[%emt 0:00:36]} 43. Ba7 {[%emt 0:00:08]} Bxh2 {[%emt 0:00:03]} 44. b8=Q {[%emt 0:00:07]} Bxb8 {[%emt 0:00:02]} 45. Bxb8 {[%emt 0:00:01]} f6 {[%emt 0:01:36]} 46. Bh2 {[%emt 0:01:21]} h4 {[%emt 0:00:52]} 47. Kc5 {[%emt 0:00:01]} g5 {[%emt 0:00:29]} 48. Kb6 {[%emt 0:00:06]} g4 {[%emt 0:00:12]} 49. Bf4 {[%emt 0:00:39]} Ke6 {[%emt 0:00:41]} 50. Kxa6 {[%emt 0:00:05]} Kf5 {[%emt 0:00:03]} 51. Bd6 {[%emt 0:00:58]} Ke4 {[%emt 0:00:53]} 52. b5 {[%emt 0:00:19]} f5 {[%emt 0:01:17]} 53. b6 {[%emt 0:00:09]} Kd5 {[%emt 0:00:30]} 1-0